Cogmind - Beta 17 @@@ ROGUE MODE // 2026.08.12 @ 00:05:03 Player: OBLIQUE Result: Destroyed by as-94357 with Assembled Blade Performance ------------- Evolutions (4) 2000 Regions Visited (10) 2000 Robots Destroyed (95) 475 Value Destroyed (2328) 2328 Prototype IDs (23) 460 Alien Tech Used (0) 0 Bonus (2238) 2238 TOTAL SCORE: 9501 Bonus ------- Follower Combat Kills 37 Delivered SUBCON Basin 2000 Registered with UFD 300 Met Optimus in HQ 500 Met Imprinter 300 Friendly Fire -899 Cogmind --------- Core Integrity 0/850 Matter 266/300 Energy 94/100 System Corruption 1% Temperature Cool (0) Movement Core (150) Ox2 Location -6/Deep Caves Parts ------- > --- POWER (1) -------- (None) > --- PROPULSION (3) --- Armored Leg > --- UTILITY (8) ------ Makeshift Sensor Array Advanced Targeting Computer Tech Extrapolator > --- WEAPON (3) ------- Makeshift Axe > --- INVENTORY (5) ---- Light Nuclear Core Improved Thermal Generator High-capacity Matter Pod (20) Improved Datajack Peak State ------------ > --- POWER ------------ Light Nuclear Core > --- PROPULSION ------- Armored Treads Advanced Treads Improved Medium Treads > --- UTILITY ---------- Improved Cooling System High-capacity Storage Unit Advanced Targeting Computer Enhanced Scrap Shield Tech Extrapolator Scrapoid Pod > --- WEAPON ----------- Plasma Rifle Thermic Laser Heavy Plasma Cannon > --- INVENTORY -------- Light Nuclear Core Light Nuclear Core Armored Treads Improved Cooling System Coolant Injector Compact Battery Energy Well Large Matter Pod Large Matter Pod Structural Scanner Seismic Detector Layered Medium Armor Plating Focal Shield Heavy Laser Improved Datajack Vortex Trap [Rating: 71] Favorites ----------- Power Light Deuterium Engine Engine Light Deuterium Engine Power Core Light Nuclear Core Propulsion Medium Treads Treads Medium Treads Leg Makeshift Leg Hover Unit Improved Hover Unit Utility Structural Scanner Device Structural Scanner Storage Humpback Processor Tech Extrapolator Hackware Improved System Shield Protection Improved Medium Armor Plating Weapon Autogun Energy Gun Plasma Rifle Energy Cannon Subdweller Beam Cannon Ballistic Gun Autogun Ballistic Cannon Flak Cannon Launcher Grenade Launcher Special Weapon RU-N14's Throwing Claymores Slashing Weapon Makeshift Axe Special Melee Weapon Dirty Datajack Build | -11 -10 -10 -10 -8 -8 -6 -6 -6 -6 -6 ------- Run | Yrd Mat Min Sub Rec Scr Fac Low Low Zio Dee Slots Evolved 8 | . . . . . . 8 . . . . Power . | . . . . . . . . . . . Propulsion 1 | . . . . . . 1 . . . . Utility 6 | . . . . . . 6 . . . . Weapon 1 | . . . . . . 1 . . . . Parts Attached 86 | 6 10 . 14 8 3 14 6 4 20 1 Power 10 | 1 1 . 3 1 . 2 1 . 1 . Engine 6 | 1 1 . 3 1 . . . . . . Core 4 | . . . . . . 2 1 . 1 . Reactor . | . . . . . . . . . . . Propulsion 21 | 2 2 . 4 2 1 1 . 2 7 . Treads 13 | 2 2 . 2 2 1 1 . 2 1 . Leg 6 | . . . . . . . . . 6 . Wheel . | . . . . . . . . . . . Hover 2 | . . . 2 . . . . . . . Flight . | . . . . . . . . . . . Utility 29 | 1 5 . 2 3 . 9 3 1 4 1 Device 9 | . 1 . 2 . . 2 2 1 . 1 Storage 8 | 1 4 . . . . 1 . . 2 . Processor 5 | . . . . 1 . 4 . . . . Hackware 2 | . . . . 1 . 1 . . . . Protection 5 | . . . . 1 . 1 1 . 2 . Artifact . | . . . . . . . . . . . Weapon 26 | 2 2 . 5 2 2 2 2 1 8 . Energy Gun 6 | 1 . . . . . 1 2 1 1 . Energy Cannon 4 | . . . 2 . 1 1 . . . . Ballistic Gun 7 | 1 2 . 3 . . . . . 1 . Ballistic Cannon 1 | . . . . 1 . . . . . . Launcher 1 | . . . . . . . . . 1 . Special Weapon 4 | . . . . . . . . . 4 . Impact Weapon . | . . . . . . . . . . . Slashing Weapon 1 | . . . . . . . . . 1 . Piercing Weapon . | . . . . . . . . . . . Special Melee Weapon 2 | . . . . 1 1 . . . . . Unidentified Prototypes 2 | . . . . . . . 1 . 1 . Parts Lost 42 | . 3 . 9 . . 2 2 14 10 2 Power 4 | . 1 . 1 . . 1 . 1 . . Propulsion 16 | . 2 . 4 . . . . 5 3 2 Utility 9 | . . . 1 . . . . 4 4 . Weapon 13 | . . . 3 . . 1 2 4 3 . Highest Loss Streak 12 | . 3 . 6 . . 2 2 12 9 2 To Critical Strikes . | . . . . . . . . . . . Average Backups 8 | . 11 20 16 3 9 13 14 11 5 4 Power . | . . . . . . . 1 1 . 1 Propulsion . | . 3 4 2 1 1 1 1 . . . Utility 3 | . 2 4 2 2 5 8 9 7 2 2 Weapon 2 | . 4 11 9 . 1 3 1 . . . Tool/Special . | . . . . . . . . . . . Unused Backups 35 | . 6 . 11 . 4 . . 4 8 2 Power 1 | . . . 1 . . . . . . . Propulsion 2 | . 1 . . . 1 . . . . . Utility 16 | . 2 . 1 . 3 . . 4 4 2 Weapon 15 | . 3 . 8 . . . . . 4 . Tool/Special 1 | . . . 1 . . . . . . . Average Slot Usage (%) 54 | . 97 100 88 78 85 90 86 65 36 45 Engine 3 | . 14 14 9 6 14 5 . . . . Treads 12 | . 27 28 24 21 28 20 20 14 6 . Device 7 | . 8 14 11 5 14 12 12 11 5 5 Storage 8 | . 17 14 14 12 14 6 6 4 6 . Processor 9 | . . . . 3 . 13 13 13 13 13 Protection 1 | . . . . 1 . 5 6 2 2 . Energy Gun 1 | . 7 . . . . 5 10 8 . . Energy Cannon 1 | . . . 9 . 2 6 8 3 . . Ballistic Gun 3 | . 20 28 14 . . . . . . . Special Melee Weapon 1 | . . . . 13 6 4 . . . . Peak Build Rating 71 | 6 12 12 24 39 26 65 71 68 58 34 Average Rating 21 | 4 9 12 12 30 18 61 67 48 21 33 On Entrance 24 | . 6 12 12 24 21 26 64 58 16 27 Avg Prop Armor Cover (%) 28 | . . . . 9 . . . 35 28 37 Naked Turns . | . . . . . . . . . . . Heaviest Build 244 | 14 52 52 62 53 57 82 87 86 244 8 Greatest Support 72 | 40 40 40 40 40 42 72 72 72 58 3 Greatest Overweight (x) 66 | . 1 1 2 6 1 1 1 2 66 2 Average Overweight (x) 5 | . . 1 1 1 1 1 . . 12 2 Largest Inventory Capacity 35 | 8 20 20 20 20 20 20 20 20 35 5 Average Capacity 27 | 6 15 20 20 17 20 20 20 15 31 5 Most Carried 20 | 2 20 20 20 20 20 19 18 17 20 5 Average Carried 9 | 1 11 20 17 15 10 14 15 12 6 4 Final Capacity 20 | 8 20 20 20 20 20 20 20 5 5 5 Final Carried 20 | 2 20 20 20 5 20 15 17 5 5 4 Class Distribution -------------------- 56% | Hauler-Mutant 36% | Mutant Dominant Class ---------------- Mutant | -10/Materials Mutant | -10/Mines Mutant | -10/Subcaves Mutant | -8/Recycling Mutant | -8/Scraptown Derelict-Mutant | -6/Factory Gunner | -6/Lower Caves Gunner | -6/Lower Caves Hauler-Mutant | -6/Zion Scavenger-Mutant | -6/Deep Caves Resources | -11 -10 -10 -10 -8 -8 -6 -6 -6 -6 -6 ----------- Run | Yrd Mat Min Sub Rec Scr Fac Low Low Zio Dee Matter Collected 2866 | 232 267 8 470 90 340 322 474 219 444 . Remotely . | . . . . . . . . . . . Salvage Created 2567 | . 676 . 638 58 . 235 227 89 644 . Parts 178 | . 41 . 43 4 . 14 22 4 50 . Haulers Intercepted 1 | . 1 . . . . . . . . . Recyclers Shooed 1 | . 1 . . . . . . . . . Parts Field Recycled . | . . . . . . . . . . . Retrieved Matter . | . . . . . . . . . . . Parts Self-Destructed 42 | . . . 13 . . . 19 4 6 . Prevented 3 | . . . . . . . 3 . . . Parts Restored . | . . . . . . . . . . . Kills | -11 -10 -10 -10 -8 -8 -6 -6 -6 -6 -6 ------- Run | Yrd Mat Min Sub Rec Scr Fac Low Low Zio Dee Combat Hostiles Destroyed 58 | . 17 . 17 1 . 5 8 4 6 . Melee 2 | . . . . 1 . . . 1 . . Guns 35 | . 17 . 9 . . 1 3 3 2 . Cannons 15 | . . . 8 . . 2 4 . 1 . AOE 5 | . . . . . . 2 . . 3 . Classes Destroyed 16 | . 7 . 2 1 . 1 1 1 3 . Builder 1 | . 1 . . . . . . . . . Hauler 1 | . 1 . . . . . . . . . Recycler 2 | . 2 . . . . . . . . . Operator 1 | . 1 . . . . . . . . . Turret 2 | . . . 2 . . . . . . . Watcher 4 | . 2 . . . . 2 . . . . Swarmer 27 | . 9 . 5 . . 3 7 3 . . Grunt 8 | . 8 . . . . . . . . . Sentry 1 | . . . . 1 . . . . . . Hunter 2 | . . . . . . 2 . . . . Programmer 1 | . . . . . . . . 1 . . Behemoth 1 | . . . . . . . 1 . . . Subdweller 12 | . . . 12 . . . . . . . Zionite 25 | . . . . . . . . . 25 . Tinkerer 3 | . . . . . . . . . 3 . Wasp 1 | . . . . . . . . . 1 . Guerrilla 1 | . . . . . . . . . 1 . Mutant 4 | . . . . . . . . . 4 . Best Kill Streak 9 | . 4 . 5 1 . 5 4 2 9 . Combat Bots Only 6 | . 3 . 3 1 . 5 4 2 6 . Max Kills in Single Turn 4 | . 1 . 1 1 . 2 2 1 4 . Gunslinging . | . . . . . . . . . . . Exploded 2 | . . . . . . 2 . . 2 . Melee 1 | . . . . 1 . . . 1 . . Uniques/NPCs Destroyed 1 | . . . . . . . . . 1 . Imprinter (-6/Zion) Combat | -11 -10 -10 -10 -8 -8 -6 -6 -6 -6 -6 -------- Run | Yrd Mat Min Sub Rec Scr Fac Low Low Zio Dee Hostile Shots Fired 621 | . 85 . 127 9 . 53 49 113 179 6 Missed 195 | . 24 . 32 4 . 17 15 32 70 1 Hits 426 | . 61 . 95 5 . 36 34 81 109 5 Melee 18 | . . . . . . . . . 13 5 Projectile 408 | . 61 . 95 5 . 36 34 81 96 . Critical Strikes 10 | . . . 2 . . 1 1 3 3 . Damage Taken 6860 | . 592 . 1492 79 . 593 577 1465 1901 161 Core 1123 | . 39 . 206 . . 77 35 433 281 52 Absorbed by Shields . | . . . . . . . . . . . Regen/Repaired (Parts) 495 | . . . . . . . . . 495 . Core Remaining (%) 51 | 100 . . . . 2 . . . . . Volleys Fired 225 | . 61 . 75 . . 13 11 11 54 . Largest 3 | . 2 . 2 . . 3 3 3 3 . Hottest 250 | . 70 . 160 . . 203 250 250 130 . Shots Fired 452 | . 122 . 134 . . 32 32 23 109 . Gun 331 | . 122 . 75 . . 11 18 19 86 . Cannon 98 | . . . 59 . . 21 14 4 . . Launcher 12 | . . . . . . . . . 12 . Special 11 | . . . . . . . . . 11 . Kinetic 175 | . 61 . 75 . . 3 . . 36 . Thermal 229 | . 61 . 59 . . 13 23 23 50 . Explosive 23 | . . . . . . . . . 23 . Electromagnetic 25 | . . . . . . 16 9 . . . Robot Hit Streak 20 | . 13 . 9 . . 5 16 20 10 . Robot Miss Streak 4 | . 4 . 3 . . 4 1 2 3 . Penetration Max . | . . . . . . . . . . . Secondary Targets 7 | . 3 . 1 . . . . 1 2 . Max Gunslinging Chain 1 | . 1 . 1 . . . . 1 1 . Shots Hit Robots 316 | . 81 . 86 18 2 21 21 17 68 2 Core Hits 141 | . 36 . 27 8 . 10 6 7 47 . Critical Kills 2 | . 1 . . . . . 1 . . . Critical Parts Destroyed 1 | . . . . . . . . . 1 . Critical Strikes 11 | . 5 . . . . 1 2 . 3 . Burn 6 | . 4 . . . . . 1 . 1 . Meltdown 1 | . . . . . . . 1 . . . Destroy 2 | . 1 . . . . . . . 1 . Corrupt 1 | . . . . . . 1 . . . . Sever 1 | . . . . . . . . . 1 . Melee Attacks 34 | . . . . 18 2 . . . 8 6 Impact . | . . . . . . . . . . . Slashing 13 | . . . . . . . . . 7 6 Piercing 18 | . . . . 18 . . . . . . Sneak Attacks 13 | . . . . 10 2 . . . 1 . Combat Hostiles 7 | . . . . 7 . . . . . . Follow-up Attacks . | . . . . . . . . . . . Damage Inflicted 7762 | . 1073 3 1610 55 . 748 598 430 3159 86 Guns 3588 | . 1049 . 854 . . 153 268 309 955 . Cannons 1564 | . . . 756 . . 411 283 114 . . Explosions 1953 | . . . . . . 182 47 . 1724 . Melee 326 | . . . . 55 . . . . 185 86 Ramming 36 | . 24 3 . . . 2 . 7 . . Kinetic 1666 | . 494 . 854 . . 23 . . 295 . Thermal 3330 | . 555 . 756 . . 439 497 423 660 . Explosive 1724 | . . . . . . . . . 1724 . Electromagnetic 385 | . . . . . . 284 101 . . . Impact . | . . . . . . . . . . . Slashing 566 | . . . . . . . . . 480 86 Piercing 55 | . . . . 55 . . . . . . Highest Corruption 4 | . . . . . . 2 2 4 4 1 Average Corruption 1 | . . . . . . 2 2 3 1 1 Corruption Purged . | . . . . . . . . . . . Corruption Blocked . | . . . . . . . . . . . Effects 25 | . . . . . . . 13 7 4 1 Message Errors 4 | . . . . . . . 1 1 1 1 Matter Fused 4 | . . . . . . . 1 3 . . Heat Flow Errors 5 | . . . . . . . 2 2 1 . Energy Discharges 5 | . . . . . . . 2 1 2 . Data Loss (minor) 4 | . . . . . . . 4 . . . Data Loss (major) 2 | . . . . . . . 2 . . . Weapon Failures 1 | . . . . . . . 1 . . . Overload Shots . | . . . . . . . . . . . Overflow Damage 163 | . . . 34 . . 22 26 . 80 1 Projectiles 103 | . . . 34 . . 22 26 . 21 . Explosions 59 | . . . . . . . . . 59 . Melee 1 | . . . . . . . . . . 1 Knockbacks 1 | . . . . . . 1 . . . . Impact . | . . . . . . . . . . . Kinetic 1 | . . . . . . 1 . . . . Secondary . | . . . . . . . . . . . Self-Inflicted Damage 62 | . . . . . . . 39 . 23 . Shots 2 | . . . . . . . 1 . 1 . Rammed 24 | 1 7 1 . . . 1 . 14 . . Targets Rammed 26 | 1 8 1 . . . 1 . 15 . . Kicked . | . . . . . . . . . . . Crushed 2 | . 1 . . . . . . 1 . . Highest Temperature 443 | . 144 . 254 10 . 78 443 198 260 . Average Temperature 70 | . 45 . 66 6 . 29 143 118 76 . Received Heat Transfer 1136 | . 195 . 710 9 . . 24 72 126 . Effects 4 | . . . . . . . 4 . . . Shutdowns 1 | . . . . . . . 1 . . . Interference 3 | . . . . . . . 3 . . . Siege Activations . | . . . . . . . . . . . Martial Activations . | . . . . . . . . . . . Shielding Activations . | . . . . . . . . . . . Robots Disrupted . | . . . . . . . . . . . Combat Hostiles . | . . . . . . . . . . . Robots Corrupted . | . . . . . . . . . . . Combat Hostiles . | . . . . . . . . . . . Parts Fried 1 | . . . . . . 1 . . . . Impact Corruptions . | . . . . . . . . . . . Robots Melted 1 | . . . . . . . 1 . . . Combat Hostiles 1 | . . . . . . . 1 . . . Parts Melted 13 | . 5 . 1 . . . 1 2 4 . Heat Transferred 6834 | . 1887 . 999 . . 500 1050 798 1600 . Parts Sabotaged . | . . . . . . . . . . . Parts Stolen . | . . . . . . . . . . . Parts Stripped . | . . . . . . . . . . . Power Chain Reactions 2 | . . . . . . 1 1 . . . Alert | -11 -10 -10 -10 -8 -8 -6 -6 -6 -6 -6 ------- Run | Yrd Mat Min Sub Rec Scr Fac Low Low Zio Dee Maximum Alert Level . | . . . . . . . . . . . Low Security (%) 100 | 100 100 100 . 100 . 100 . . . . Level 1 . | . . . . . . . . . . . Level 2 . | . . . . . . . . . . . Level 3 . | . . . . . . . . . . . Level 4 . | . . . . . . . . . . . Level 5 . | . . . . . . . . . . . High Security . | . . . . . . . . . . . Max Security . | . . . . . . . . . . . Peak Influence 194 | . 194 . . 60 . 105 . . . . Initial 60 | . . . . 60 . . . . . . Average 38 | . 74 . . 8 . 11 . . . . Influence Increases 1214 | . 542 . 215 25 . 142 190 100 . . Destroy 0b10 Robot/C 840 | . 340 . 140 20 . 100 160 80 . . Destroy 0b10 Robot/NC 45 | . 35 . . . . 10 . . . . Destroy Leader 150 | . 76 . . . . 24 30 20 . . Successful Hack 36 | . 31 . . 5 . . . . . . Destroy Structure 8 | . . . . . . 8 . . . . Partial Spotted 15 | . 15 . . . . . . . . . Lose Combat Pursuer 120 | . 45 . 75 . . . . . . . Influence Decreases 1214 | . 542 . 90 150 . 69 263 90 10 . Entered New Map 103 | . . . . 65 . . 28 . 10 . Time Decay 991 | . 512 . 70 85 . 59 215 50 . . Lost Part 120 | . 30 . 20 . . 10 20 40 . . Squads Dispatched 6 | . 3 . . . . 3 . . . . Investigation 1 | . 1 . . . . . . . . . Extermination 1 | . . . . . . 1 . . . . Reinforcement 2 | . 2 . . . . . . . . . Assault . | . . . . . . . . . . . Garrison 2 | . . . . . . 2 . . . . Intercept . | . . . . . . . . . . . Searches Triggered . | . . . . . . . . . . . Construction Impeded . | . . . . . . . . . . . Haulers Reinforced . | . . . . . . . . . . . Active Scanning Responses . | . . . . . . . . . . . Cargo Convoy Interrupts . | . . . . . . . . . . . Stealth | -11 -10 -10 -10 -8 -8 -6 -6 -6 -6 -6 --------- Run | Yrd Mat Min Sub Rec Scr Fac Low Low Zio Dee Distress Signals 8 | . 6 . . . . 2 . . . . Communications Jammed . | . . . . . . . . . . . Distress Signals . | . . . . . . . . . . . Times Spotted 127 | . 34 . 21 4 . 9 8 5 43 3 Peak Tracking Total 9 | . 6 . 5 1 . 5 4 4 9 3 Tactical Retreats 4 | . 1 . 2 . . . . . 1 . Traps | -11 -10 -10 -10 -8 -8 -6 -6 -6 -6 -6 ------- Run | Yrd Mat Min Sub Rec Scr Fac Low Low Zio Dee Traps Triggered 1 | . 1 . . . . . . . . . Indirectly . | . . . . . . . . . . . Trap Hack Attempts . | . . . . . . . . . . . Triggered . | . . . . . . . . . . . Disarmed . | . . . . . . . . . . . Reprogrammed . | . . . . . . . . . . . Reused 1 | . . . . . . . 1 . . . Traps Extracted . | . . . . . . . . . . . Installed 1 | . . . . . . . 1 . . . Triggered 1 | . . . . . . . 1 . . . Most Traps Carried 1 | . . . . . 1 1 1 . . . Machines | -11 -10 -10 -10 -8 -8 -6 -6 -6 -6 -6 ---------- Run | Yrd Mat Min Sub Rec Scr Fac Low Low Zio Dee Machines Disabled 7 | . . . 3 . . . . . 4 . Max in Single Turn 2 | . . . 1 . . . . . 2 . Machines Repaired . | . . . . . . . . . . . Machines Dismantled . | . . . . . . . . . . . Machines Sabotaged . | . . . . . . . . . . . Overloaded Fab Kills . | . . . . . . . . . . . Hacking | -11 -10 -10 -10 -8 -8 -6 -6 -6 -6 -6 --------- Run | Yrd Mat Min Sub Rec Scr Fac Low Low Zio Dee Machines Accessed 15 | . 6 . 2 2 3 1 . . 1 . Terminals 9 | . 6 . . 2 . 1 . . . . Fabricators . | . . . . . . . . . . . Repair Stations . | . . . . . . . . . . . Recycling Units . | . . . . . . . . . . . Scanalyzers . | . . . . . . . . . . . Garrison Access . | . . . . . . . . . . . Total Hacks 41 | . 19 . 2 3 9 6 . . 2 . Successful 26 | . 10 . 2 1 9 2 . . 2 . Failed 14 | . 8 . . 2 . 4 . . . . Catastrophic 3 | . 2 . . 1 . . . . . . Database Lockouts 1 | . 1 . . . . . . . . . Manual 26 | . 13 . . 2 . 6 . . 5 . Terminals 28 | . 19 . . 3 . 6 . . . . Fabricators . | . . . . . . . . . . . Repair Stations . | . . . . . . . . . . . Recycling Units . | . . . . . . . . . . . Scanalyzers . | . . . . . . . . . . . Garrison Access . | . . . . . . . . . . . Terminal Hacks 21 | . 7 . 2 . 9 1 . . 2 . Record 8 | . . . . . 8 . . . . . Part Schematic 2 | . . . . . . . . . 2 . Robot Analysis 1 | . 1 . . . . . . . . . Prototype ID Bank 3 | . 3 . . . . . . . . . Open Door 1 | . . . 1 . . . . . . . Terminal Index 2 | . 1 . . . . 1 . . . . Alert Level 1 | . 1 . . . . . . . . . Locate Traps 1 | . 1 . . . . . . . . . Proto ID Catalog 1 | . . . . . 1 . . . . . Release Object 1 | . . . 1 . . . . . . . Fabricator Hacks . | . . . . . . . . . . . Repair Station Hacks . | . . . . . . . . . . . Recycling Unit Hacks . | . . . . . . . . . . . Scanalyzer . | . . . . . . . . . . . Garrison Access Hacks . | . . . . . . . . . . . Unauthorized Hacks 5 | . 3 . . 1 . 1 . . . . Terminals 5 | . 3 . . 1 . 1 . . . . Botnet 5 | . 3 . . 1 . 1 . . . . Fabricators . | . . . . . . . . . . . Repair Stations . | . . . . . . . . . . . Recycling Units . | . . . . . . . . . . . Scanalyzers . | . . . . . . . . . . . Garrison Access . | . . . . . . . . . . . Data Cores Recovered . | . . . . . . . . . . . Used . | . . . . . . . . . . . Hacking Detections 9 | . 6 . . 2 . 1 . . . . Full Trace Events . | . . . . . . . . . . . Feedback Events . | . . . . . . . . . . . Feedback Blocked . | . . . . . . . . . . . Robot Schematics Acquired . | . . . . . . . . . . . Robots Built . | . . . . . . . . . . . Authchips . | . . . . . . . . . . . Time . | . . . . . . . . . . . Total Robot Build Rating . | . . . . . . . . . . . Part Schematics Acquired 20 | . . . . . . 2 3 . 15 . Parts Built . | . . . . . . . . . . . Authchips . | . . . . . . . . . . . Time . | . . . . . . . . . . . Total Part Build Rating . | . . . . . . . . . . . Part Studies Acquired . | . . . . . . . . . . . Parts Repaired . | . . . . . . . . . . . Time . | . . . . . . . . . . . Parts Recycled . | . . . . . . . . . . . Recycled Matter . | . . . . . . . . . . . Retrieved Matter . | . . . . . . . . . . . Retrieved Components . | . . . . . . . . . . . Parts Scanalyzed . | . . . . . . . . . . . Part Schematics Acquired . | . . . . . . . . . . . Parts Damaged . | . . . . . . . . . . . Bothacking | -11 -10 -10 -10 -8 -8 -6 -6 -6 -6 -6 ------------ Run | Yrd Mat Min Sub Rec Scr Fac Low Low Zio Dee Used RIF Installer . | . . . . . . . . . . . Robots Hacked 3 | . . . . . 2 . . . 1 . Non-combat . | . . . . . . . . . . . Combat 3 | . . . . . 2 . . . 1 . Robot Hacks Applied 3 | . . . . . 2 . . . 1 . parse_system 3 | . . . . . 2 . . . 1 . Relay Couplers Released . | . . . . . . . . . . . Fabnet Peak Effective % . | . . . . . . . . . . . Robots Rewired . | . . . . . . . . . . . Allies Hacked . | . . . . . . . . . . . Hacks Repelled . | . . . . . . . . . . . Allies | -11 -10 -10 -10 -8 -8 -6 -6 -6 -6 -6 -------- Run | Yrd Mat Min Sub Rec Scr Fac Low Low Zio Dee Total Allies 5 | . . . . 1 . . . . 4 . Largest Group 2 | . . . . 1 . . . . 2 . Highest-Rated Group 192 | . . . . 15 . . . . 192 . Highest-Rated Ally 96 | . . . . 15 . . . . 96 . Initial UFD Resources 24 | . . . . . . 24 24 24 24 24 Total Orders . | . . . . . . . . . . . Ally Attacks 20 | . . . . . . . . . 20 . Total Damage 315 | . . . . . . . . . 315 . Kills 4 | . . . . . . . . . 4 . Allies Corrupted . | . . . . . . . . . . . Allies Melted . | . . . . . . . . . . . Intel | -11 -10 -10 -10 -8 -8 -6 -6 -6 -6 -6 ------- Run | Yrd Mat Min Sub Rec Scr Fac Low Low Zio Dee Active Infowar (turns) 34296 | . 1083 560 2998 392 3820 688 813 299 23579 64 Optics 824 | . . . . 135 . 687 2 . . . Sensors 3259 | . 1083 560 1552 . . . . . . 64 Structural 29857 | . . . 1446 257 3820 568 92 95 23579 . Seismic 924 | . . . . . . . 720 204 . . Robot Analysis Total 1 | . 1 . . . . . . . . . Derelict Logs Recovered 7 | . . 1 2 . . . 2 . 2 . Drone Launches . | . . . . . . . . . . . Drone Recoveries . | . . . . . . . . . . . Exploration | -11 -10 -10 -10 -8 -8 -6 -6 -6 -6 -6 ------------- Run | Yrd Mat Min Sub Rec Scr Fac Low Low Zio Dee Turns Passed 37026 | 86 1698 560 4003 623 3820 688 968 326 24188 66 Spaces Moved 8348 | 50 730 231 1620 215 1548 221 377 212 3123 21 Core 2689 | 5 . . . 2 . . . 126 2535 21 Treads 5256 | 45 730 231 1323 184 1548 221 377 86 511 . Legs 77 | . . . . . . . . . 77 . Wheels . | . . . . . . . . . . . Hover 326 | . . . 297 29 . . . . . . Flight . | . . . . . . . . . . . Fastest Speed 50 | 50 160 240 176 56 237 238 158 50 50 150 Average Speed 409 | 149 193 240 228 238 244 238 237 115 720 150 Slowest Speed 3350 | 160 240 240 240 350 250 238 238 238 3350 150 Overloaded Moves . | . . . . . . . . . . . Propulsion Burnouts . | . . . . . . . . . . . Robots Hopped . | . . . . . . . . . . . Potential Cave-ins . | . . . . . . . . . . . Cave-ins Triggered . | . . . . . . . . . . . Exploration Rate (%) 49 | 3 97 47 71 44 85 10 46 43 91 2 Regions Visited 10 Branch Regions 8 Pre-discovered Areas 5 | . . 2 2 . . . . . 1 . Known Exits Taken 2 | . . . . . . 1 1 . . . Unknown Exits Taken 8 | 1 1 1 1 1 1 . . 1 1 . Scrap Searched 22 | . . 2 1 . 12 . 2 . 5 . Spaces Dug 10 | . . . 6 . . 2 . . . 2 Terrain Destroyed 60 | . . . 15 . . 8 9 1 25 2 Melee 2 | . . . . . . . . . . 2 Projectile 27 | . . . 15 . . 5 4 1 2 . AOE 31 | . . . . . . 3 5 . 23 . Terrain Rammed . | . . . . . . . . . . . Walls Destroyed . | . . . . . . . . . . . Machines Disabled . | . . . . . . . . . . . Actions | -11 -10 -10 -10 -8 -8 -6 -6 -6 -6 -6 --------- Run | Yrd Mat Min Sub Rec Scr Fac Low Low Zio Dee Total 10740 | 58 893 236 1813 340 1586 355 426 268 4715 50 Wait 1812 | . 44 5 63 77 7 97 12 8 1477 22 Move 8339 | 49 729 230 1619 214 1547 221 376 211 3122 21 Hop . | . . . . . . . . . . . Pick Up 91 | 2 27 . 9 8 20 6 2 . 17 . Fast Attach 37 | 6 3 . 2 5 . 1 2 3 15 . Attach 52 | . 3 . 9 5 2 9 6 8 9 1 Detach 30 | . 2 . 5 5 2 1 8 3 4 . Swap 30 | . 4 . 10 . 1 5 6 . 4 . Drop 64 | . 12 . 21 8 5 2 2 9 5 . Fire 225 | . 61 . 75 . . 13 11 11 54 . Melee 34 | . . . . 18 2 . . . 8 6 Ram . | . . . . . . . . . . . Kick . | . . . . . . . . . . . Crush 25 | 1 8 1 . . . . . 15 . . Escape Stasis . | . . . . . . . . . . . Rewire . | . . . . . . . . . . . Trap 1 | . . . . . . . 1 . . . Miscellaneous . | . . . . . . . . . . . Route ------- -11/Scrapyard -10/Materials (discovered 5 exits: [*Mat x3] / [*Min] / *Sub) -10/Mines (discovered 2 exits: [*Mat] / *Sub) -10/Subcaves (discovered 3 exits: [*Mat x2] / *Rec) -8/Recycling -8/Scraptown (discovered 2 exits: *Fac x2) -6/Factory -6/Lower Caves -6/Lower Caves -6/Zion (discovered 2 exits: [*Dee] / [*Pro]) -6/Deep Caves History --------- Turn | Location | Event 4 | -11/Scrapyard | Discovered new exit (range 16) 87 | -11/Scrapyard | Entered Materials 222 | -10/Materials | Discovered new exit (range 16) 303 | -10/Materials | Build established: Mutant 620 | -10/Materials | Discovered new exit (range 16) 630 | -10/Materials | Lost 3 parts (1p2n) 885 | -10/Materials | Central database locked down 977 | -10/Materials | Discovered new exit (range 16) 1104 | -10/Materials | Discovered new exit (range 9) 1295 | -10/Materials | Discovered new exit (range 13) 1785 | -10/Materials | Entered Mines 2050 | -10/Mines | Discovered new exit (range 7) 2075 | -10/Mines | Learned location of Storage (-8) 2333 | -10/Mines | Discovered new exit (range 6) 2345 | -10/Mines | Entered Subcaves 2346 | -10/Subcaves | Approached by a straggling Scientist 2375 | -10/Subcaves | Learned location of Zion (-6) 2375 | -10/Subcaves | Met a Zionite searching for "candidates" 3286 | -10/Subcaves | Learned 4 Materials zone layouts 3999 | -10/Subcaves | Shifting Twisted Machinery released Scrap Shield 3999 | -10/Subcaves | Shifting Twisted Machinery released Sub. Shrapnel Launcher 4031 | -10/Subcaves | Discovered new exit (range 8) 4068 | -10/Subcaves | Core integrity fell below 50% 4107 | -10/Subcaves | Lost 6 parts (1p2n1u2w) 4966 | -10/Subcaves | Discovered new exit (range 13) 5752 | -10/Subcaves | Discovered new exit (range 9) 5792 | -10/Subcaves | Core integrity fell below 20% 5826 | -10/Subcaves | Shifting Twisted Machinery released Barrage Gun 6093 | -10/Subcaves | Found SUBCON Basin 6348 | -10/Subcaves | Entered Recycling 6830 | -8/Recycling | Scanned before Scraplab entrance 6857 | -8/Recycling | Discovered new exit (range 11) 6865 | -8/Recycling | Entered Scraplab 6904 | -8/Recycling | Found SUBCON Basin 6971 | -8/Recycling | Entered Scraptown 7264 | -8/Scraptown | Visited Shadow of the Wyrm 7316 | -8/Scraptown | Visited Awakened 7334 | -8/Scraptown | Visited Bundlers 7444 | -8/Scraptown | Visited Cyclists 7474 | -8/Scraptown | Visited Symbiants 7593 | -8/Scraptown | Visited TADAMA 7916 | -8/Scraptown | Discovered new exit (range 11) 8127 | -8/Scraptown | Visited UFD Registry 8127 | -8/Scraptown | Registered with UFD as "Raillauncher" 8197 | -8/Scraptown | Visited Curators Association 8284 | -8/Scraptown | Visited Abandonware Association 8312 | -8/Scraptown | Learned abandonware demo "ERRANTS.EXE" 8312 | -8/Scraptown | Learned abandonware demo "TRNCOAT.EXE" 8369 | -8/Scraptown | Visited Research Penetration Think Tank 8422 | -8/Scraptown | Visited Science Guys 8499 | -8/Scraptown | Visited DA-N13 Charitable Foundation 8509 | -8/Scraptown | Found DCF Scrap (27 items) 8582 | -8/Scraptown | Visited Junk Repository 8672 | -8/Scraptown | Visited Scrapoid Pod Storage 8694 | -8/Scraptown | Visited Chapter 10 8812 | -8/Scraptown | Visited Junk Repository 9064 | -8/Scraptown | Delivered Scrap Shield to a Scientist 9334 | -8/Scraptown | Found Scrapoid Pod 10657 | -8/Scraptown | Met Optimus 10657 | -8/Scraptown | Accepted into 0bPrime 10782 | -8/Scraptown | Discovered new exit (range 5) 10791 | -8/Scraptown | Entered Factory 10791 | -6/Factory | Evolved 8 slots: Propulsion x1, Utility x6, Weapon x1 10882 | -6/Factory | Tech Extrapolator generated special schematic: Deep Structural Scanner 11101 | -6/Factory | Build established: Derelict-Mutant 11176 | -6/Factory | Spotted B-75 Beast 11376 | -6/Factory | Garrison activated, responded to threat 11432 | -6/Factory | Discovered new exit (range 11) 11478 | -6/Factory | Identified exit to Lower Caves 11479 | -6/Factory | Entered Lower Caves 11481 | -6/Lower Caves | UFD Scientist delivered a prototype 11484 | -6/Lower Caves | Found Prototype Protection 11484 | -6/Lower Caves | Identified Enh. Scrap Shield 11562 | -6/Lower Caves | Learned Factory terminal intel 11802 | -6/Lower Caves | Identified exit to Lower Caves 12093 | -6/Lower Caves | Spotted B-75 Beast 12146 | -6/Lower Caves | Destroyed B-75 Beast 12178 | -6/Lower Caves | Build established: Gunner 12447 | -6/Lower Caves | Entered another Lower Caves area 12614 | -6/Lower Caves | Spotted B-75 Beast 12707 | -6/Lower Caves | Lost 12 parts (1p4n3u4w) 12709 | -6/Lower Caves | Core integrity fell below 50% 12766 | -6/Lower Caves | Discovered new exit (range 15) 12773 | -6/Lower Caves | Entered Zion 12807 | -6/Zion | System corruption cleaned by Quarantine Array 12933 | -6/Zion | Build established: Mutant 12945 | -6/Zion | Tech Extrapolator generated special schematic: Machine Rigger 12969 | -6/Zion | Learned 4 Factory zone layouts 12998 | -6/Zion | Received a hallucinogenic algorithm 13120 | -6/Zion | Discovered new exit (range 15) 13167 | -6/Zion | Given A8's code to call for help 13254 | -6/Zion | Turned away by Imprinter 13363 | -6/Zion | Found Prototype Special Weapon 13363 | -6/Zion | Identified RU-N14's Throwing Claymores 13452 | -6/Zion | Gained Derelict followers 15493 | -6/Zion | Build established: Hauler-Mutant 34660 | -6/Zion | Found RU-N14's Throwing Claymores 34668 | -6/Zion | Found RU-N14's Throwing Claymores 34677 | -6/Zion | Found RU-N14's Throwing Claymores 34958 | -6/Zion | Visited the Megawrench Repair Shop 34958 | -6/Zion | Megawrench repaired 8 parts 36186 | -6/Zion | Murdered Imprinter 36187 | -6/Zion | Attacked by Zionites 36329 | -6/Zion | Extracted access codes from Imprinter's data core 36659 | -6/Zion | Build established: Hauler-Tank 36911 | -6/Zion | Core integrity fell below 20% 36927 | -6/Zion | Opened final containment barrier to the Deep Caves 36928 | -6/Zion | Enhanced Grunt warped into view, answering call for help 36932 | -6/Zion | Enhanced Grunt warped into view, answering call for help 36940 | -6/Zion | Lost 9 parts (2n4u3w) 36959 | -6/Zion | Discovered new exit (range 5) 36960 | -6/Zion | Saw the warning signs outside the Deep Caves entrance 36961 | -6/Zion | Entered Deep Caves 37027 | -6/Deep Caves | Destroyed by as-94357 with Assembled Blade Last Messages --------------- Twisted Machinery. 36952_ 4M-G2Y(z) pulls a Mak. Spear out of the Twisted Machinery. 36955_ Acquired Arm. Leg. 5L-4SY(z) bursts out of the Twisted Machinery. 36957_ UM-QZA(z) destroyed. 36958_ 5L-4SY(z) pulls a Mak. Sword out of the Twisted Machinery. 36958_ 4M-G2Y(z) destroyed. 36959_ 5L-4SY(z) destroyed. 36959_ IO-8V5(z) destroyed. 36959_ EXIT=FOUND 36960_ The room is plastered with warning signs of various forms. LOCATION=UNKNOWN GOAL=ESCAPE 36990_ JYURVV7S2B>EGGP9MNOP&XT/AG/82ZXH 37020_ Destroyed Asb. Hover Unit. 37022_ Mak. Leg destroyed. 37023_ Imp. Carbon-fiber Leg destroyed. Map ----- +----------------------------------------------------+ | ????????????????????????????????????????????? | | ????????????????????????????????????????????? | | ????????????????????????????????????????????? | | ????????????????????????????????????????????? | | ????????????????????????????????????????????? | | ????????????????????????????????????????????? | | ????????????????????????????????????????????? | | ????????????????????????????????????????????? | | ????????????????????????????????????????????? | | ????????????????????????????????????????????? | | ????????????????????????????????????????????? | | ????????????????????????????? #?????????????? | | ????????????????????????????? #?????????????? | | ???????????????????????????? #?????????????? | | ??????????????????????##???? #?????????????? | | ??????????????????????# ##?? #?????????????? | | ?????????????????????? #?# ##????????????? | | ?????????????????????? ## ##???????????? | | ??????????????????????# #???????????? | | ??????????????????????# ##??????????? | | ?????????????????????## # "???????? | | ?????????????????????# ""???????? | | ?????????????????????# ?????????? | | ??????????????????????#a #????????????????? | | ??????????????????????##aa##????????????????? | | ???????????????????????# @#?????????????????? | | ?????????????????????### #?????????????????? | | ?????????????????????# ; #?????????????????? | | ?????????????????????### #?????????????????? | | ???????????????????????# #?????????????????? | | ???????????????????????# ##????????????????? | | ???????????????????????# #????????????????? | | ???????????????????????# #????????????????? | | ???????????????????????# ##????????????????? | | ???????????????????????####?????????????????? | | ????????????????????????????????????????????? | | ????????????????????????????????????????????? | | ????????????????????????????????????????????? | | ????????????????????????????????????????????? | | ????????????????????????????????????????????? | | ????????????????????????????????????????????? | | ????????????????????????????????????????????? | | | | | | | | | | | | | | | | | +----------------------------------------------------+ Best States ------------- Heat Dissipation 64 Coolant Potential 65 Energy Generation 15 Energy Capacity 510 Matter Stores 300 Matter Capacity 300 Sight Range 20 Robot Scan Range 19 Terrain Scan Density 10 Armor Coverage 1250 Evasion (%) 55 Targeting Accuracy 8 Recoil Reduction 3 Defensive Hacking 12 Item Schematics ----------------- Deep Structural Scanner | -6/Factory | Extrapolated Mak. Power Source | -6/Factory | Extrapolated Mak. Coolant Network | -6/Lower Caves | Extrapolated Mak. Medium Armor Plating | -6/Lower Caves | Extrapolated Mak. Ablative Armor | -6/Lower Caves | Extrapolated Mak. Thermal Plating | -6/Zion | Extrapolated Machine Rigger | -6/Zion | Extrapolated Flamer | -6/Zion | Free Beamcaster | -6/Zion | Free Lgt. Humpback | -6/Zion | Extrapolated 0b10 Decoder Chip [Scout] | -6/Zion | Extrapolated Mak. Hacking Suite | -6/Zion | Extrapolated 0b10 Decoder Chip [Generic] | -6/Zion | Extrapolated 0b10 Decoder Chip [Skirmisher] | -6/Zion | Extrapolated Mak. System Shield | -6/Zion | Extrapolated Arc Thrower | -6/Zion | Extrapolated Hvy. Battle Rifle | -6/Zion | Extrapolated Multitool | -6/Zion | Extrapolated Plasma Flamer | -6/Zion | Extrapolated Spk. Medium Treads | -6/Zion | Extrapolated Robot Schematics ------------------ None Fabricated ------------ Nothing Repaired ---------- Nothing Studied --------- None Alien Tech Used ----------------- None Achievements -------------- Inventory Pressure Scientist At Large Challenges ------------ None Game ------ Seed CarbideTachyonShooter Manual? 0 Play Time 01:38:23 Cumulative 237.2 hours Start 2026.08.10 @ 16:09:55 End 2026.08.12 @ 00:05:03 Sessions 8 Manual Loads 0 Difficulty Rogue Special Mode None Game No. 137 Rogue 137 Adventurer 0 Explorer 0 Win Type - Total 5 Types 5/0/0/0/0/0/0/0/0/0 Lore% 80 Gallery% 68 Achievement% 60 Wizard Run 0 Options --------- Layout 1 ASCII 0 Keyboard 0 Movement Numpad Keybinds 0 Fullscreen 1 Font 24/Smallcaps Map View 50x35 Zoom Use 0% Tactical HUD 1 Map Filters NONE Filters NONE Steam 1 RUN: 6c40f5b4-4450-4169-bd7a-d2517163e878